Workbook

Sheet Inc Retail II (30% down payment
B1: Rent | C1: Rent Sq ft /floor | D1: Rent per sq ft | E1: Com Rent sq ft | F1: NNN | G1: Total Payment | H1: Tenant
A2: Floor 3 | B2: =(E2*C2)/12 -> 1925 | C2: 700 | D2: =B2/700 -> 2.75 | E2: 33 | F2: =$F$19*0.33 -> 1237.39 | G2: =B2+F2 -> 3162.39 | H2: HOA
A3: Floor 2 | B3: 2216.666667 | C3: 700 | D3: 3.166666667 | E3: 38 | F3: 1237.39 | G3: 3454.056667 | H3: HOA
A4: Floor 1 | B4: 3400 | C4: 700 | D4: 4.857142857 | E4: =B4*12/C4 -> 58.28571429 | F4: 1237.39 | G4: 4637.39 | H4: Foundation
A5: Total | B5: =sum(B2:B4) -> 7541.666667 | C5: 2100 | F5: =sum(F2:F4) -> 3712.17 | G5: 11253.83667
A7: Income | E7: Building Info
A8: Monthly Gross Income | B8: =B5 -> 7541.666667 | E8: Lot size | F8: 1000
A9: Annual Gross Income | B9: =B8*12 -> 90500 | E9: Total Building Size | F9: =sum(C2:C4)/0.875 -> 2400
A10: NOI | B10: =B9 -> 90500
A11: Annual Net Income | B11: =(B8-B14)*12 -> 18283.74931 | E11: Triple Nets
E12: Tax Rate | F12: 0.029
A13: Financing | E13: Assessments/sq ft | F13: 2.3
A14: Mortgage | B14: =-PMT(B16/12, 12*20, B18*(1-B15)) -> 6018.020891 | C14: Down Payment | E14: Taxes | F14: =B18*F12 -> 34800
A15: Down Payment (%) | B15: 0.3 | C15: =B18*B15 -> 360000 | E15: Assessments | F15: =F8*F13 -> 2300
A16: Interest Rate | B16: 0.06 | E16: Insurance | F16: 7896
A17: Cap Rate | B17: =B10/B18 -> 0.07541666667 | E17: Annual NNN | F17: =sum(F14:F16) -> 44996
A18: Purchase Price | B18: 1200000
A19: DSCR | B19: =(B10/12)/B14 -> 1.253180539 | E19: Monthly NNN | F19: =F17/12 -> 3749.666667
A20: Cash on Cash | B20: =B11/C15 -> 0.05078819252 | E20: NNN/ft | F20: =F17/sum(C2:C4) -> 21.42666667
